Workbook

Sheet 县级补贴机具结算明细表
A1: 2025年度宿城区第三批享受农机购置与应用补贴机具购机者信息表
A2: 公示单位：宿城区农业农村局
A3: 购机者 | D3: 补贴机具 | J3: 补贴资金 （单位:元）
A4: 申请表编号 | B4: 姓名或组织名称 | C4: 乡镇 | D4: 机具品目 | E4: 型号 | F4: 出厂编号[发动机号] | G4: 生产企业 | H4: 经销商 | I4: 数量 | J4: 销售价格 | K4: 中央金额
A5: 3213020825000024 | B5: 张树峰 | C5: 蔡集镇 | D5: 犁 | E5: 1LT-435 | F5: 2024435212[] | G5: 山东弘泰农业装备有限公司 | H5: 宿迁大田农机有限公司 | I5: 1 | J5: 18000 | K5: 3000
A6: 3213020825000025 | B6: 倪四宝 | C6: 蔡集镇 | D6: 秸秆粉碎还田机 | E6: 1JH-225A | F6: HB225220446[] | G6: 德州市华北农机装备有限公司 | H6: 宿迁市广源农机汽车销售有限公司 | I6: 1 | J6: 11100 | K6: 2100
A7: 3213020825000026 | B7: 陈为 | C7: 蔡集镇 | D7: 旋耕机 | E7: 1GKM-250 | F7: JF250053[] | G7: 灌云巨富农业机械有限公司 | H7: 连云港苏连机械有限公司 | I7: 1 | J7: 11000 | K7: 2800
A8: 3213020825000027 | B8: 樊雪成 | C8: 蔡集镇 | D8: 育秧（苗）播种设备 | E8: 2BPD-1S | F8: 1S-1288[] | G8: 泰州稻盛农业机械制造有限公司 | H8: 宿迁四海农机汽车贸易有限公司 | I8: 1 | J8: 10500 | K8: 2700
A9: 3213020825000028 | B9: 樊雪成 | C9: 蔡集镇 | D9: 插秧机 | E9: 2ZGQ-60A | F9: R6DSR00342[Z89480] | G9: 洋马农机（中国）有限公司 | H9: 宿迁四海农机汽车贸易有限公司 | I9: 1 | J9: 100000 | K9: 24900
A10: 3213020825000029 | B10: 李玉强 | C10: 蔡集镇 | D10: 秸秆粉碎还田机 | E10: 1JH-250 | F10: H2500130[] | G10: 河北春耕机械制造有限公司 | H10: 宿迁大田农机有限公司 | I10: 1 | J10: 10500 | K10: 2500
A11: 3213020825000030 | B11: 李坡 | C11: 蔡集镇 | D11: 轮式拖拉机 | E11: 现:GT2004(G4)(原:GT2004) | F11: 02L210168P4AA1236[6P23C006576] | G11: 泰安泰山国泰拖拉机制造有限公司 | H11: 宿迁市鑫圣农机有限公司 | I11: 1 | J11: 157500 | K11: 29000
A12: 合计 | I12: =SUM(I5:I11) -> 7 | J12: =SUM(J5:J11) -> 318600 | K12: =SUM(K5:K11) -> 67000
A13: 3213020225000017 | B13: 陈茂雨 | C13: 陈集镇 | D13: 穴播机 | E13: 2BYSF-2A | F13: NYW2BYSF-2A250015[] | G13: 河南农有王农业装备科技股份有限公司 | H13: 宿迁金登汽车销售有限公司 | I13: 1 | J13: 4000 | K13: 600
A14: 3213020225000019 | B14: 周克成 | C14: 陈集镇 | D14: 穴播机 | E14: 2BYF-2 | F14: NYW2BYF-22500393[] | G14: 河南农有王农业装备科技股份有限公司 | H14: 宿迁金登汽车销售有限公司 | I14: 1 | J14: 2600 | K14: 600
A15: 3213020225000021 | B15: 石万录 | C15: 陈集镇 | D15: 穴播机 | E15: 2BYSF-3A | F15: NYW2BYSF-3A250093[] | G15: 河南农有王农业装备科技股份有限公司 | H15: 宿迁金登汽车销售有限公司 | I15: 1 | J15: 6000 | K15: 600
A16: 3213020225000026 | B16: 王斌 | C16: 陈集镇 | D16: 穴播机 | E16: 2BYSF-2A | F16: NYW2BYSF-2A250021[] | G16: 河南农有王农业装备科技股份有限公司 | H16: 宿迁金登汽车销售有限公司 | I16: 1 | J16: 4100 | K16: 600
A17: 3213020225000030 | B17: 陈茂洋 | C17: 陈集镇 | D17: 插秧机 | E17: 现:2ZGQ-60D(G4)(原:2ZGQ-60D) | F17: R60DR13012[Z90236] | G17: 洋马农机（中国）有限公司 | H17: 宿迁四海农机汽车贸易有限公司 | I17: 1 | J17: 86000 | K17: 24900
A18: 3213020225000033 | B18: 何兴光 | C18: 陈集镇 | D18: 秸秆粉碎还田机 | E18: 1JH-250A | F18: HBSD250250221[] | G18: 德州市华北农机装备有限公司 | H18: 宿迁德福农业机械销售有限公司 | I18: 1 | J18: 17000 | K18: 2500
A19: 3213020225000040 | B19: 乔佳威 | C19: 陈集镇 | D19: 犁 | E19: 1LYF-445 | F19: LF445D681[] | G19: 宁晋县陆风制动装置有限公司 | H19: 泗洪县顺民农机有限公司 | I19: 1 | J19: 19000 | K19: 3000
A20: 3213020225000047 | B20: 王本胜 | C20: 陈集镇 | D20: 穴播机 | E20: 2BYFSX-2 | F20: NH2538985[] | G20: 河北农哈哈机械集团有限公司 | H20: 宿迁市广源农机汽车销售有限公司 | I20: 1 | J20: 4500 | K20: 600
A21: 3213020225000057 | B21: 梁军 | C21: 陈集镇 | D21: 穴播机 | E21: 2BYSF-3A | F21: NYW2BYSF-3A250092[] | G21: 河南农有王农业装备科技股份有限公司 | H21: 宿迁金登汽车销售有限公司 | I21: 1 | J21: 3900 | K21: 600
A22: 3213020225000060 | B22: 徐宜军 | C22: 陈集镇 | D22: 穴播机 | E22: 2BYFSX-2 | F22: NH2538969[] | G22: 河北农哈哈机械集团有限公司 | H22: 宿迁市广源农机汽车销售有限公司 | I22: 1 | J22: 4500 | K22: 600
A23: 3213020225000061 | B23: 郑东 | C23: 陈集镇 | D23: 轮式拖拉机 | E23: 现：CL504B(G4)（原：CL504B） | F23: CL24MY3812[SD9041217] | G23: 常力工贸有限公司 | H23: 宿迁金登汽车销售有限公司 | I23: 1 | J23: 36000 | K23: 5600
A24: 3213020225000063 | B24: 夏寿松 | C24: 陈集镇 | D24: 穴播机 | E24: 2BYSF-2A | F24: NYW2BYSF-2A250031[] | G24: 河南农有王农业装备科技股份有限公司 | H24: 宿迁金登汽车销售有限公司 | I24: 1 | J24: 3500 | K24: 600
A25: 3213020225000064 | B25: 夏寿松 | C25: 陈集镇 | D25: 轮式拖拉机 | E25: CL504(G4) | F25: CL24HY2820[SD9051133] | G25: 常力工贸有限公司 | H25: 宿迁金登汽车销售有限公司 | I25: 1 | J25: 36000 | K25: 6100
A26: 3213020225000065 | B26: 武利 | C26: 陈集镇 | D26: 轮式拖拉机 | E26: CL504(G4) | F26: CL24KY3414[SD9051210] | G26: 常力工贸有限公司 | H26: 宿迁金登汽车销售有限公司 | I26: 1 | J26: 36000 | K26: 6100
A27: 3213020225000066 | B27: 王加洋 | C27: 陈集镇 | D27: 轮式拖拉机 | E27: CL504(G4) | F27: CL24FY1960[SD9051557] | G27: 常力工贸有限公司 | H27: 宿迁金登汽车销售有限公司 | I27: 1 | J27: 36000 | K27: 6100
A28: 3213020225000067 | B28: 张学春 | C28: 陈集镇 | D28: 轮式拖拉机 | E28: CL504(G4) | F28: CL24KY3413[SD9046507] | G28: 常力工贸有限公司 | H28: 宿迁金登汽车销售有限公司 | I28: 1 | J28: 36000 | K28: 6100
A29: 3213020225000068 | B29: 王斌 | C29: 陈集镇 | D29: 秸秆粉碎还田机 | E29: 1JH-150 | F29: 25H150078[] | G29: 潍坊裕祥农业装备有限公司 | H29: 宿迁金登汽车销售有限公司 | I29: 1 | J29: 6000 | K29: 1800
A30: 3213020225000070 | B30: 徐业旋 | C30: 陈集镇 | D30: 轮式拖拉机 | E30: 现：YHX2004(G4)(原：YHX2004) | F30: 66021H068R4000033[6P24H020089] | G30: 江苏悦达智能农业装备有限公司 | H30: 宿迁市广源农机汽车销售有限公司 | I30: 1 | J30: 179000 | K30: 29000
A31: 3213020225000071 | B31: 徐宜军 | C31: 陈集镇 | D31: 轮式拖拉机 | E31: 现:LW504(G4)(原:LW504) | F31: 0FA210054R4070118[B0703815] | G31: 潍坊力王农业装备有限公司 | H31: 宿迁久耕农机服务有限公司 | I31: 1 | J31: 35000 | K31: 5600
A32: 3213020225000072 | B32: 陈秀兰 | C32: 陈集镇 | D32: 轮式拖拉机 | E32: 现：CL1604-1(G4)（原：CL1604-1） | F32: CL25FD1812[YT25206375] | G32: 常力工贸有限公司 | H32: 宿迁金登汽车销售有限公司 | I32: 1 | J32: 124000 | K32: 22000
A33: 3213020225000073 | B33: 陈从桂 | C33: 陈集镇 | D33: 穴播机 | E33: 2BYFSX-2 | F33: NH2506570[] | G33: 河北农哈哈机械集团有限公司 | H33: 宿迁市广源农机汽车销售有限公司 | I33: 1 | J33: 4500 | K33: 600
A34: 3213020225000074 | B34: 唐玉胜 | C34: 陈集镇 | D34: 轮式拖拉机 | E34: 现:HX504-A(G4)(原:HX504-A) | F34: HX504A25062849[506C0042] | G34: 日照市弘旭机械制造有限公司 | H34: 宿迁金登汽车销售有限公司 | I34: 1 | J34: 36000 | K34: 5600
A35: 3213020225000076 | B35: 邱继兵 | C35: 陈集镇 | D35: 穴播机 | E35: 2BYSF-2A | F35: NYW2BYSF-2A250066[] | G35: 河南农有王农业装备科技股份有限公司 | H35: 宿迁金登汽车销售有限公司 | I35: 1 | J35: 3600 | K35: 600
A36: 3213020225000078 | B36: 陈家宝 | C36: 陈集镇 | D36: 秸秆粉碎还田机 | E36: 1JH-150A | F36: 25H01150047[] | G36: 潍坊百励丰农业机械有限公司 | H36: 宿迁金登汽车销售有限公司 | I36: 1 | J36: 6000 | K36: 1800
A37: 3213020225000079 | B37: 李家龙 | C37: 陈集镇 | D37: 秸秆粉碎还田机 | E37: 1JH-150A | F37: 25H01150048[] | G37: 潍坊百励丰农业机械有限公司 | H37: 宿迁金登汽车销售有限公司 | I37: 1 | J37: 6000 | K37: 1800
A38: 3213020225000080 | B38: 马雷明 | C38: 陈集镇 | D38: 插秧机 | E38: 现:2ZGQ-60D(G4)(原:2ZGQ-60D) | F38: R60DR11160[Z83862],R60DR11166[Z83816] | G38: 洋马农机（中国）有限公司 | H38: 宿迁四海农机汽车贸易有限公司 | I38: 2 | J38: 170000 | K38: 49800
A39: 3213020225000081 | B39: 李家龙 | C39: 陈集镇 | D39: 轮式拖拉机 | E39: 现：CL704-6(G4)（原：CL704-6） | F39: CL25FE1753[SD9079624] | G39: 常力工贸有限公司 | H39: 宿迁金登汽车销售有限公司 | I39: 1 | J39: 46000 | K39: 7900
A40: 3213020225000082 | B40: 夏玉银 | C40: 陈集镇 | D40: 轮式拖拉机 | E40: 现：CL704-6(G4)（原：CL704-6） | F40: CL25EE0981[SD9077113] | G40: 常力工贸有限公司 | H40: 宿迁金登汽车销售有限公司 | I40: 1 | J40: 44000 | K40: 7900
A41: 合计 | I41: =SUM(I13:I40) -> 29 | J41: =SUM(J13:J40) -> 995200 | K41: =SUM(K13:K40) -> 199600
A42: 3213021025000017 | B42: 王帅 | C42: 耿车镇 | D42: 埋茬起浆机 | E42: 1JSZ-600B | F42: KD2505226[] | G42: 江苏海之诺机械装备有限公司 | H42: 连云港市连旺机械有限公司 | I42: 1 | J42: 16000 | K42: 2300
A43: 合计 | I43: =SUM(I42:I42) -> 1 | J43: =SUM(J42:J42) -> 16000 | K43: =SUM(K42:K42) -> 2300
A44: 3213020425000034 | B44: 李练 | C44: 龙河镇 | D44: 谷物联合收割机 | E44: 4LZ-8.0EZ | F44: ZRLNK475337[362HS8R10263] | G44: 江苏沃得农业机械股份有限公司（原：江苏沃得农业机械有限公司） | H44: 宿迁佳田农机有限公司 | I44: 1 | J44: 152000 | K44: 40300
A45: 3213020425000035 | B45: 李红亮 | C45: 龙河镇 | D45: 谷物联合收割机 | E45: 4LZ-8.0EP | F45: QRLNL496035[366BS1R11319] | G45: 江苏沃得农业机械股份有限公司（原：江苏沃得农业机械有限公司） | H45: 宿迁市星华农机有限公司 | I45: 1 | J45: 150000 | K45: 40300
A46: 3213020425000037 | B46: 臧公勋 | C46: 龙河镇 | D46: 碾米机 | E46: NZJ15/15 | F46: DYXY1108[] | G46: 丹阳市星耀机械有限公司 | H46: 丹阳市星耀机械有限公司 | I46: 1 | J46: 17000 | K46: 5000
A47: 3213020425000047 | B47: 卢宏军 | C47: 龙河镇 | D47: 育秧（苗）播种设备 | E47: 2BPD-1S | F47: 1S-1236[],1S-1238[] | G47: 泰州稻盛农业机械制造有限公司 | H47: 宿迁四海农机汽车贸易有限公司 | I47: 2 | J47: 21000 | K47: 5400
A48: 3213020425000048 | B48: 陆召意 | C48: 龙河镇 | D48: 谷物联合收割机 | E48: 4LZ-9.0ET | F48: QRLPC510186[3655S3S10129] | G48: 江苏沃得农业机械股份有限公司（原：江苏沃得农业机械有限公司） | H48: 宿迁佳田农机有限公司 | I48: 1 | J48: 168000 | K48: 40300
A49: 3213020425000049 | B49: 杨正兰 | C49: 龙河镇 | D49: 插秧机 | E49: 现:2ZGQ-60D(G4)(原:2ZGQ-60D) | F49: R60DR13048[Z89957] | G49: 洋马农机（中国）有限公司 | H49: 宿迁四海农机汽车贸易有限公司 | I49: 1 | J49: 86000 | K49: 24900
A50: 3213020425000050 | B50: 王彬 | C50: 龙河镇 | D50: 插秧机 | E50: 2ZG-6D | F50: XY6D000239S[2502000621] | G50: 浙江星莱和农业装备有限公司 | H50: 宿迁市华星农机有限公司 | I50: 1 | J50: 61000 | K50: 24900
A51: 3213020425000051 | B51: 李军生 | C51: 龙河镇 | D51: 轮式拖拉机 | E51: 现:HX504-A(G4)(原:HX504-A) | F51: HX504A25042741[305D3331] | G51: 日照市弘旭机械制造有限公司 | H51: 宿迁金登汽车销售有限公司 | I51: 1 | J51: 33000 | K51: 5600
A52: 3213020425000052 | B52: 曹庆楼 | C52: 龙河镇 | D52: 轮式拖拉机 | E52: 现：CL504B(G4)（原：CL504B） | F52: CL25FY1715[SD9018967] | G52: 常力工贸有限公司 | H52: 宿迁金登汽车销售有限公司 | I52: 1 | J52: 33000 | K52: 5600
A53: 3213020425000053 | B53: 王利勇 | C53: 龙河镇 | D53: 育秧（苗）播种设备 | E53: 2BPD-1S | F53: 1S-1246[] | G53: 泰州稻盛农业机械制造有限公司 | H53: 宿迁四海农机汽车贸易有限公司 | I53: 1 | J53: 10000 | K53: 2700
A54: 3213020425000055 | B54: 孙士良 | C54: 龙河镇 | D54: 插秧机 | E54: 2ZG-6A | F54: XY6A001262P[2304000168] | G54: 浙江星莱和农业装备有限公司 | H54: 宿迁市华星农机有限公司 | I54: 1 | J54: 60000 | K54: 24900
A55: 合计 | I55: =SUM(I44:I54) -> 12 | J55: =SUM(J44:J54) -> 791000 | K55: =SUM(K44:K54) -> 219900
A56: 3213020325000014 | B56: 姜加强 | C56: 屠园镇 | D56: 轮式拖拉机 | E56: 现:SD1604(G4)(原:SD1604) | F56: SFM01601QE[A7E0T4R30061] | G56: 山东萨丁重工有限公司 | H56: 泗洪县顺民农机有限公司 | I56: 1 | J56: 146000 | K56: 22000
A57: 3213020325000023 | B57: 仓晓明 | C57: 屠园镇 | D57: 穴播机 | E57: 2BYSF-2A | F57: NYW2BYSF-2A250013[] | G57: 河南农有王农业装备科技股份有限公司 | H57: 宿迁金登汽车销售有限公司 | I57: 1 | J57: 4300 | K57: 600
A58: 3213020325000042 | B58: 陈太兵 | C58: 屠园镇 | D58: 穴播机 | E58: 2BYFSX-3 | F58: NH2516280[] | G58: 河北农哈哈机械集团有限公司 | H58: 宿迁市广源农机汽车销售有限公司 | I58: 1 | J58: 6200 | K58: 600
A59: 3213020325000043 | B59: 王正明 | C59: 屠园镇 | D59: 旋耕机 | E59: 1GKNJG-280 | F59: SH280X24JGY042417[] | G59: 河北圣和农业机械有限公司 | H59: 宿迁市广源农机汽车销售有限公司 | I59: 1 | J59: 11000 | K59: 1500
A60: 3213020325000055 | B60: 李学才 | C60: 屠园镇 | D60: 穴播机 | E60: 2BYFSX-2 | F60: NH2506564[] | G60: 河北农哈哈机械集团有限公司 | H60: 宿迁市广源农机汽车销售有限公司 | I60: 1 | J60: 4500 | K60: 600
A61: 3213020325000057 | B61: 胡吕军 | C61: 屠园镇 | D61: 穴播机 | E61: 2BYSF-2A | F61: NYW2BYSF-2A250042[] | G61: 河南农有王农业装备科技股份有限公司 | H61: 宿迁金登汽车销售有限公司 | I61: 1 | J61: 3200 | K61: 600
A62: 3213020325000058 | B62: 胡吕军 | C62: 屠园镇 | D62: 单粒（精密）播种机 | E62: 2BYSFX-2 | F62: NYW2BYSFX-2255323[] | G62: 河南农有王农业装备科技股份有限公司 | H62: 宿迁金登汽车销售有限公司 | I62: 1 | J62: 3800 | K62: 540
A63: 3213020325000060 | B63: 陈前良 | C63: 屠园镇 | D63: 单粒（精密）播种机 | E63: 2BDF-4K | F63: HNK425069[] | G63: 济宁海农农业机械有限公司 | H63: 宿迁久耕农机服务有限公司 | I63: 1 | J63: 4000 | K63: 1300
A64: 3213020325000061 | B64: 徐学友 | C64: 屠园镇 | D64: 育秧（苗）播种设备 | E64: 2BPD-1S | F64: 1S-1224[] | G64: 泰州稻盛农业机械制造有限公司 | H64: 泗阳吉丰农机汽车贸易有限公司 | I64: 1 | J64: 10500 | K64: 2700
A65: 3213020325000063 | B65: 陈太兵 | C65: 屠园镇 | D65: 旋耕机 | E65: 1GKN-280 | F65: SL250466[] | G65: 连云港苏连机械有限公司 | H65: 连云港苏连机械有限公司 | I65: 1 | J65: 7500 | K65: 1500
A66: 3213020325000064 | B66: 王爱军 | C66: 屠园镇 | D66: 轮式拖拉机 | E66: 现：CL704-6(G4)（原：CL704-6） | F66: CL25FE1714[SD9079618] | G66: 常力工贸有限公司 | H66: 宿迁金登汽车销售有限公司 | I66: 1 | J66: 44000 | K66: 7900
A67: 3213020325000067 | B67: 徐春 | C67: 屠园镇 | D67: 插秧机 | E67: 现:2ZGF-6E(G4)(原:2ZGF-6E) | F67: GSL0400110[CH43500286] | G67: 江苏沃得高新农业装备有限公司 | H67: 宿迁佳田农机有限公司 | I67: 1 | J67: 58000 | K67: 24900
A68: 合计 | I68: =SUM(I56:I67) -> 12 | J68: =SUM(J56:J67) -> 303000 | K68: =SUM(K56:K67) -> 64740
A69: 3213020925000014 | B69: 王刚 | C69: 王官集镇 | D69: 秸秆粉碎还田机 | E69: 1JH-250A | F69: HY1JH250A25305[] | G69: 山东华运农机设备有限公司 | H69: 睢宁张军农机销售有限公司 | I69: 1 | J69: 16600 | K69: 2500
A70: 3213020925000022 | B70: 刘宇 | C70: 王官集镇 | D70: 旋耕机 | E70: 1GKN-280 | F70: SL250621[] | G70: 连云港苏连机械有限公司 | H70: 连云港苏连机械有限公司 | I70: 1 | J70: 7500 | K70: 1500
A71: 3213020925000024 | B71: 王坡 | C71: 王官集镇 | D71: 旋耕机 | E71: 1GQN-160 | F71: CW1600242[] | G71: 河北程沃农业机械有限公司 | H71: 徐州鑫鑫机械销售有限公司 | I71: 1 | J71: 4200 | K71: 840
A72: 3213020925000032 | B72: 王赐恩 | C72: 王官集镇 | D72: 秸秆粉碎还田机 | E72: 1JH-250 | F72: YXH202541345[] | G72: 河北江蓝农业机械有限公司 | H72: 睢宁逸安汽车贸易有限公司 | I72: 1 | J72: 13500 | K72: 2500
A73: 3213020925000033 | B73: 王赐恩 | C73: 王官集镇 | D73: 秸秆粉碎还田机 | E73: 1JHY-250A | F73: JG50629[] | G73: 河北耕耘农业机械制造有限公司 | H73: 徐州丰富农业装备有限公司 | I73: 1 | J73: 12000 | K73: 2500
A74: 3213020925000034 | B74: 刘自精 | C74: 王官集镇 | D74: 投（饲）饵机 | E74: STFF-2200W | F74: S25JS0238[] | G74: 金湖县华能机电有限公司 | H74: 金湖县华能机电有限公司 | I74: 1 | J74: 6400 | K74: 1600
A75: 3213020925000035 | B75: 王从平 | C75: 王官集镇 | D75: 秸秆粉碎还田机 | E75: 1JH-250A | F75: HBD250248015[] | G75: 德州市华北农机装备有限公司 | H75: 宿迁市广源农机汽车销售有限公司 | I75: 1 | J75: 16800 | K75: 2500
A76: 3213020925000036 | B76: 刘旭 | C76: 王官集镇 | D76: 秸秆粉碎还田机 | E76: 1JH-250 | F76: H2500129[] | G76: 河北春耕机械制造有限公司 | H76: 宿迁大田农机有限公司 | I76: 1 | J76: 10000 | K76: 2500
A77: 3213020925000037 | B77: 王蒙恩 | C77: 王官集镇 | D77: 插秧机 | E77: 现:2ZGF-6E(G4)(原:2ZGF-6E) | F77: GSL0402105[CH52501802] | G77: 江苏沃得高新农业装备有限公司 | H77: 宿迁佳田农机有限公司 | I77: 1 | J77: 60000 | K77: 24900
A78: 3213020925000038 | B78: 王蒙恩 | C78: 王官集镇 | D78: 插秧机 | E78: 现:2ZGF-6E(G4)(原:2ZGF-6E) | F78: GSL0402722[CH52700273] | G78: 江苏沃得高新农业装备有限公司 | H78: 宿迁佳田农机有限公司 | I78: 1 | J78: 60000 | K78: 24900
A79: 3213020925000039 | B79: 王蒙恩 | C79: 王官集镇 | D79: 插秧机 | E79: 现:2ZGF-6E(G4)(原:2ZGF-6E) | F79: GSL0402725[CH52700217] | G79: 江苏沃得高新农业装备有限公司 | H79: 宿迁佳田农机有限公司 | I79: 1 | J79: 60000 | K79: 24900
A80: 3213020925000040 | B80: 王蒙恩 | C80: 王官集镇 | D80: 插秧机 | E80: 现:2ZGF-6E(G4)(原:2ZGF-6E) | F80: GSL0402819[CH52700238] | G80: 江苏沃得高新农业装备有限公司 | H80: 宿迁佳田农机有限公司 | I80: 1 | J80: 60000 | K80: 24900
A81: 3213020925000041 | B81: 王蒙恩 | C81: 王官集镇 | D81: 插秧机 | E81: 现:2ZGF-6E(G4)(原:2ZGF-6E) | F81: GSL0402904[CH52600260] | G81: 江苏沃得高新农业装备有限公司 | H81: 宿迁佳田农机有限公司 | I81: 1 | J81: 60000 | K81: 24900
A82: 3213020925000044 | B82: 刘宇 | C82: 王官集镇 | D82: 旋耕机 | E82: 1GKN-280 | F82: SL251251[],SL251252[] | G82: 连云港苏连机械有限公司 | H82: 连云港永之发农业机械有限公司 | I82: 2 | J82: 15000 | K82: 3000
A83: 合计 | I83: =SUM(I69:I82) -> 15 | J83: =SUM(J69:J82) -> 402000 | K83: =SUM(K69:K82) -> 143940
A84: 3213020125000005 | B84: 宿城区朱昌辉养殖场 | C84: 中扬镇 | D84: 农用（植保）无人驾驶航空器（可含撒播等功能） | E84: 3WWDZ-50A | F84: DJI3WWDZ-50A0256D[] | G84: 深圳市大疆创新科技有限公司 | H84: 宿迁瑞星农机有限公司 | I84: 1 | J84: 50000 | K84: 8000
A85: 3213020125000008 | B85: 宿城区中扬镇鸿丰家庭农场 | C85: 中扬镇 | D85: 插秧机 | E85: 现:2ZGQ-60D(G4)(原:2ZGQ-60D) | F85: R60DR09580[Z80949] | G85: 洋马农机（中国）有限公司 | H85: 宿迁四海农机汽车贸易有限公司 | I85: 1 | J85: 82000 | K85: 24900
A86: 3213020125000009 | B86: 宿城区中扬镇鸿丰家庭农场 | C86: 中扬镇 | D86: 插秧机 | E86: 现:2ZGQ-60D(G4)(原:2ZGQ-60D) | F86: R60DR09588[Z81047] | G86: 洋马农机（中国）有限公司 | H86: 宿迁四海农机汽车贸易有限公司 | I86: 1 | J86: 82000 | K86: 24900
A87: 3213020125000010 | B87: 宿城区中扬镇鸿丰家庭农场 | C87: 中扬镇 | D87: 插秧机 | E87: 现:2ZGQ-60D(G4)(原:2ZGQ-60D) | F87: R60DR09581[Z80950] | G87: 洋马农机（中国）有限公司 | H87: 宿迁四海农机汽车贸易有限公司 | I87: 1 | J87: 82000 | K87: 24900
A88: 3213020125000011 | B88: 宿城区中扬镇鸿丰家庭农场 | C88: 中扬镇 | D88: 插秧机 | E88: 现:2ZGQ-60D(G4)(原:2ZGQ-60D) | F88: R60DR09668[Z80844] | G88: 洋马农机（中国）有限公司 | H88: 宿迁四海农机汽车贸易有限公司 | I88: 1 | J88: 82000 | K88: 24900
A89: 3213020125000012 | B89: 宿城区中扬镇鸿丰家庭农场 | C89: 中扬镇 | D89: 插秧机 | E89: 现:2ZGQ-60D(G4)(原:2ZGQ-60D) | F89: R60DR09571[Z81034] | G89: 洋马农机（中国）有限公司 | H89: 宿迁四海农机汽车贸易有限公司 | I89: 1 | J89: 82000 | K89: 24900
A90: 3213020125000013 | B90: 宿城区中扬镇鸿丰家庭农场 | C90: 中扬镇 | D90: 插秧机 | E90: 现:2ZGQ-60D(G4)(原:2ZGQ-60D) | F90: R60DR09675[Z80916] | G90: 洋马农机（中国）有限公司 | H90: 宿迁四海农机汽车贸易有限公司 | I90: 1 | J90: 82000 | K90: 24900
A91: 3213020125000014 | B91: 宿城区中扬镇鸿丰家庭农场 | C91: 中扬镇 | D91: 插秧机 | E91: 现:2ZGQ-60D(G4)(原:2ZGQ-60D) | F91: R60DR09582[Z80951] | G91: 洋马农机（中国）有限公司 | H91: 宿迁四海农机汽车贸易有限公司 | I91: 1 | J91: 82000 | K91: 24900
A92: 3213020125000018 | B92: 魏春杨 | C92: 中扬镇 | D92: 插秧机 | E92: 2ZGQ-6K1 | F92: KBP61900JRCK07195[4RR0914] | G92: 久保田农业机械（苏州）有限公司 | H92: 宿迁苏欣农机汽车有限公司 | I92: 1 | J92: 85000 | K92: 24900
A93: 3213020125000019 | B93: 魏春杨 | C93: 中扬镇 | D93: 插秧机 | E93: 2ZGQ-6K1 | F93: KBP61900TRCK07189[4RQ6139] | G93: 久保田农业机械（苏州）有限公司 | H93: 宿迁苏欣农机汽车有限公司 | I93: 1 | J93: 85000 | K93: 24900
A94: 3213020125000020 | B94: 魏春杨 | C94: 中扬镇 | D94: 插秧机 | E94: 2ZGQ-6K1 | F94: KBP61900VRCK07183[4RQ6131] | G94: 久保田农业机械（苏州）有限公司 | H94: 宿迁苏欣农机汽车有限公司 | I94: 1 | J94: 85000 | K94: 24900
A95: 3213020125000021 | B95: 魏春杨 | C95: 中扬镇 | D95: 插秧机 | E95: 2ZGQ-6K1 | F95: KBP61900KRCK07194[4RQ6141] | G95: 久保田农业机械（苏州）有限公司 | H95: 宿迁苏欣农机汽车有限公司 | I95: 1 | J95: 85000 | K95: 24900
A96: 3213020125000022 | B96: 魏春杨 | C96: 中扬镇 | D96: 插秧机 | E96: 2ZGQ-6K1 | F96: KBP61900CRCK07188[4RQ6138] | G96: 久保田农业机械（苏州）有限公司 | H96: 宿迁苏欣农机汽车有限公司 | I96: 1 | J96: 85000 | K96: 24900
A97: 3213020125000023 | B97: 魏春杨 | C97: 中扬镇 | D97: 插秧机 | E97: 2ZGQ-6K1 | F97: KBP61900PRCK07193[4RQ6147] | G97: 久保田农业机械（苏州）有限公司 | H97: 宿迁苏欣农机汽车有限公司 | I97: 1 | J97: 85000 | K97: 24900
A98: 3213020125000024 | B98: 魏兴春 | C98: 中扬镇 | D98: 插秧机 | E98: 2ZGQ-6K1 | F98: KBP61900VRCK07197[4RR0915] | G98: 久保田农业机械（苏州）有限公司 | H98: 宿迁苏欣农机汽车有限公司 | I98: 1 | J98: 85000 | K98: 24900
A99: 3213020125000025 | B99: 蒋道利 | C99: 中扬镇 | D99: 插秧机 | E99: 现:2ZGQ-8K5(G4)(原:2ZGQ-8K5) | F99: KBP61800PRCH00935[1RK0134] | G99: 久保田农业机械（苏州）有限公司 | H99: 宿迁苏欣农机汽车有限公司 | I99: 1 | J99: 113000 | K99: 27700
A100: 3213020125000026 | B100: 蒋道利 | C100: 中扬镇 | D100: 插秧机 | E100: 现:2ZGQ-8K5(G4)(原:2ZGQ-8K5) | F100: KBP61800KRCH00936[1RJ8659] | G100: 久保田农业机械（苏州）有限公司 | H100: 宿迁苏欣农机汽车有限公司 | I100: 1 | J100: 113000 | K100: 27700
A101: 3213020125000027 | B101: 魏兴春 | C101: 中扬镇 | D101: 插秧机 | E101: 2ZGQ-6K1 | F101: KBP61900CRCK07179[4RQ6129] | G101: 久保田农业机械（苏州）有限公司 | H101: 宿迁苏欣农机汽车有限公司 | I101: 1 | J101: 85000 | K101: 24900
A102: 3213020125000028 | B102: 魏兴春 | C102: 中扬镇 | D102: 插秧机 | E102: 2ZGQ-6K1 | F102: KBP61900ARCK07217[4RR1075] | G102: 久保田农业机械（苏州）有限公司 | H102: 宿迁苏欣农机汽车有限公司 | I102: 1 | J102: 85000 | K102: 24900
A103: 3213020125000029 | B103: 魏兴春 | C103: 中扬镇 | D103: 插秧机 | E103: 2ZGQ-6K1 | F103: KBP61900VRCK07216[4RR1077] | G103: 久保田农业机械（苏州）有限公司 | H103: 宿迁苏欣农机汽车有限公司 | I103: 1 | J103: 85000 | K103: 24900
A104: 3213020125000030 | B104: 魏兴春 | C104: 中扬镇 | D104: 插秧机 | E104: 2ZGQ-6K1 | F104: KBP61900ERCK07206[4RR1083] | G104: 久保田农业机械（苏州）有限公司 | H104: 宿迁苏欣农机汽车有限公司 | I104: 1 | J104: 85000 | K104: 24900
A105: 3213020125000031 | B105: 魏兴春 | C105: 中扬镇 | D105: 插秧机 | E105: 2ZGQ-6K1 | F105: KBP61900PRCK07159[4RQ6298] | G105: 久保田农业机械（苏州）有限公司 | H105: 宿迁苏欣农机汽车有限公司 | I105: 1 | J105: 85000 | K105: 24900
A106: 3213020125000032 | B106: 魏兴春 | C106: 中扬镇 | D106: 插秧机 | E106: 2ZGQ-6K1 | F106: KBP61900JRCK07181[4RQ6136] | G106: 久保田农业机械（苏州）有限公司 | H106: 宿迁苏欣农机汽车有限公司 | I106: 1 | J106: 85000 | K106: 24900
A107: 3213020125000033 | B107: 魏兴春 | C107: 中扬镇 | D107: 插秧机 | E107: 2ZGQ-6K1 | F107: KBP61900CRCK07182[4RQ6130] | G107: 久保田农业机械（苏州）有限公司 | H107: 宿迁苏欣农机汽车有限公司 | I107: 1 | J107: 85000 | K107: 24900
A108: 3213020125000034 | B108: 魏兴春 | C108: 中扬镇 | D108: 插秧机 | E108: 2ZGQ-6K1 | F108: KBP61900ARCK07198[4RR0918] | G108: 久保田农业机械（苏州）有限公司 | H108: 宿迁苏欣农机汽车有限公司 | I108: 1 | J108: 85000 | K108: 24900
A109: 3213020125000035 | B109: 魏兴春 | C109: 中扬镇 | D109: 插秧机 | E109: 2ZGQ-6K1 | F109: KBP61900LRCK07204[4RR0921] | G109: 久保田农业机械（苏州）有限公司 | H109: 宿迁苏欣农机汽车有限公司 | I109: 1 | J109: 85000 | K109: 24900
A110: 3213020125000041 | B110: 魏春杨 | C110: 中扬镇 | D110: 插秧机 | E110: 2ZGQ-6K1 | F110: KBP61900PRCK07212[4RR1150] | G110: 久保田农业机械（苏州）有限公司 | H110: 宿迁苏欣农机汽车有限公司 | I110: 1 | J110: 85000 | K110: 24900
A111: 3213020125000042 | B111: 魏春杨 | C111: 中扬镇 | D111: 插秧机 | E111: 2ZGQ-6K1 | F111: KBP61900ERCK07190[4RQ6145] | G111: 久保田农业机械（苏州）有限公司 | H111: 宿迁苏欣农机汽车有限公司 | I111: 1 | J111: 85000 | K111: 24900
A112: 3213020125000054 | B112: 陈伏珍 | C112: 中扬镇 | D112: 插秧机 | E112: 现:2ZGQ-60D(G4)(原:2ZGQ-60D) | F112: R60DR11057[Z83542],R60DR11065[Z83563],R60DR11071[Z83541],R60DR11162[Z83853] | G112: 洋马农机（中国）有限公司 | H112: 宿迁四海农机汽车贸易有限公司 | I112: 4 | J112: 328000 | K112: 99600
A113: 3213020125000055 | B113: 管劲松 | C113: 中扬镇 | D113: 插秧机 | E113: 现:2ZGQ-60D(G4)(原:2ZGQ-60D) | F113: R60DR11307[Z84349],R60DR11311[Z84141],R60DR11324[Z84259],R60DR11333[Z84427] | G113: 洋马农机（中国）有限公司 | H113: 宿迁四海农机汽车贸易有限公司 | I113: 4 | J113: 328000 | K113: 99600
A114: 3213020125000056 | B114: 葛余勇 | C114: 中扬镇 | D114: 谷物联合收割机 | E114: 现:4LZ-6.5A8(G4)(原:4LZ-6.5A8) | F114: KBH71000TSCD04803[CSG0631] | G114: 久保田农业机械（苏州）有限公司 | H114: 泗阳苏欣农机有限公司 | I114: 1 | J114: 200000 | K114: 40300
A115: 3213020125000057 | B115: 葛余勇 | C115: 中扬镇 | D115: 谷物联合收割机 | E115: 现:4LZ-6.5A8(G4)(原:4LZ-6.5A8) | F115: KBH71000JSCE04873[CSG0291] | G115: 久保田农业机械（苏州）有限公司 | H115: 泗阳苏欣农机有限公司 | I115: 1 | J115: 200000 | K115: 40300
A116: 3213020125000066 | B116: 孙文龙 | C116: 中扬镇 | D116: 穴播机 | E116: 2BYFSX-2 | F116: NH2538978[] | G116: 河北农哈哈机械集团有限公司 | H116: 宿迁市广源农机汽车销售有限公司 | I116: 1 | J116: 4500 | K116: 600
A117: 3213020125000067 | B117: 王晓华 | C117: 中扬镇 | D117: 旋耕机 | E117: 1GK-230 | F117: JN20250650096[] | G117: 江苏俊牛机械有限公司 | H117: 泗阳盛丰农业机械有限公司 | I117: 1 | J117: 7800 | K117: 1200
A118: 合计 | I118: =SUM(I84:I117) -> 40 | J118: =SUM(J84:J117) -> 3448300 | K118: =SUM(K84:K117) -> 967500
A119: 合 计 | I119: 116 | J119: 6274100 | K119: 1664980
A120: 此公示时间为5天，自2025年8月25日-29日，如有异议请拨打投诉电话:0527-82898339

Sheet Sheet1
